Workbook

Sheet 公示
A2: 学号 | B2: 绩点 | C2: 总加分 | D2: 总绩点 （原始为4位） | E2: 权重1 （取5位） | F2: 笔试成绩 | G2: 面试成绩 | H2: 考试平均成绩 | I2: 折合绩点 （取8位） | J2: 权重2 （取9位） | K2: 总成绩 （取9位） | L2: 合成百分制总成绩
A4: 2200015107 | B4: 3.856 | C4: 0.0424 | D4: =B4+C4 -> 3.8984 | E4: =D4*90% -> 3.50856 | F4: 73 | G4: 85.8 | H4: =AVERAGE(F4:G4) -> 79.4 | I4: =4-3*(100-H4)*(100-H4)/1600 -> 3.20432500 | J4: =I4*10% -> 0.320432500 | K4: =E4+J4 -> 3.828992500 | L4: =100-SQRT((4-K4)*1600/3) -> 90.45
A5: 2200015135 | B5: 3.834 | C5: 0.0164 | D5: =B5+C5 -> 3.8504 | E5: =D5*90% -> 3.46536 | F5: 78 | G5: 94 | H5: =AVERAGE(F5:G5) -> 86 | I5: =4-3*(100-H5)*(100-H5)/1600 -> 3.63250000 | J5: =I5*10% -> 0.363250000 | K5: =E5+J5 -> 3.828610000 | L5: =100-SQRT((4-K5)*1600/3) -> 90.44
A6: 2200015166 | B6: 3.820 | C6: 0.023 | D6: =B6+C6 -> 3.8430 | E6: =D6*90% -> 3.4587 | F6: 84 | G6: 81.4 | H6: =AVERAGE(F6:G6) -> 82.7 | I6: =4-3*(100-H6)*(100-H6)/1600 -> 3.43883125 | J6: =I6*10% -> 0.343883125 | K6: =E6+J6 -> 3.802583125 | L6: =100-SQRT((4-K6)*1600/3) -> 89.74
A7: 2200015140 | B7: 3.801 | C7: 0.0364 | D7: =B7+C7 -> 3.8374 | E7: =D7*90% -> 3.45366 | F7: 71 | G7: 90 | H7: =AVERAGE(F7:G7) -> 80.5 | I7: =4-3*(100-H7)*(100-H7)/1600 -> 3.28703125 | J7: =I7*10% -> 0.328703125 | K7: =E7+J7 -> 3.782363125 | L7: =100-SQRT((4-K7)*1600/3) -> 89.23
A8: 2200015128 | B8: 3.792 | C8: 0.012 | D8: =B8+C8 -> 3.8040 | E8: =D8*90% -> 3.4236 | F8: 79 | G8: 88.8 | H8: =AVERAGE(F8:G8) -> 83.9 | I8: =4-3*(100-H8)*(100-H8)/1600 -> 3.51398125 | J8: =I8*10% -> 0.351398125 | K8: =E8+J8 -> 3.774998125 | L8: =100-SQRT((4-K8)*1600/3) -> 89.05
A9: 2200015167 | B9: 3.759 | C9: 0.0427 | D9: =B9+C9 -> 3.8017 | E9: =D9*90% -> 3.42153 | F9: 81 | G9: 87.2 | H9: =AVERAGE(F9:G9) -> 84.1 | I9: =4-3*(100-H9)*(100-H9)/1600 -> 3.52598125 | J9: =I9*10% -> 0.352598125 | K9: =E9+J9 -> 3.774128125 | L9: =100-SQRT((4-K9)*1600/3) -> 89.02
A10: 2200015150 | B10: 3.830 | C10: 0.014 | D10: =B10+C10 -> 3.8440 | E10: =D10*90% -> 3.4596 | F10: 72 | G10: 84.2 | H10: =AVERAGE(F10:G10) -> 78.1 | I10: =4-3*(100-H10)*(100-H10)/1600 -> 3.10073125 | J10: =I10*10% -> 0.310073125 | K10: =E10+J10 -> 3.769673125 | L10: =100-SQRT((4-K10)*1600/3) -> 88.92
A11: 2200015171 | B11: 3.808 | C11: 0.028 | D11: =B11+C11 -> 3.8360 | E11: =D11*90% -> 3.4524 | F11: 67 | G11: 90.4 | H11: =AVERAGE(F11:G11) -> 78.7 | I11: =4-3*(100-H11)*(100-H11)/1600 -> 3.14933125 | J11: =I11*10% -> 0.314933125 | K11: =E11+J11 -> 3.767333125 | L11: =100-SQRT((4-K11)*1600/3) -> 88.86
A12: 2200015125 | B12: 3.743 | C12: 0.043 | D12: =B12+C12 -> 3.7860 | E12: =D12*90% -> 3.4074 | F12: 78 | G12: 85.8 | H12: =AVERAGE(F12:G12) -> 81.9 | I12: =4-3*(100-H12)*(100-H12)/1600 -> 3.38573125 | J12: =I12*10% -> 0.338573125 | K12: =E12+J12 -> 3.745973125 | L12: =100-SQRT((4-K12)*1600/3) -> 88.36
A13: 2200015159 | B13: 3.771 | C13: 0.031 | D13: =B13+C13 -> 3.8020 | E13: =D13*90% -> 3.4218 | F13: 74 | G13: 85.6 | H13: =AVERAGE(F13:G13) -> 79.8 | I13: =4-3*(100-H13)*(100-H13)/1600 -> 3.23492500 | J13: =I13*10% -> 0.323492500 | K13: =E13+J13 -> 3.745292500 | L13: =100-SQRT((4-K13)*1600/3) -> 88.34
A14: 2200017413 | B14: 3.722 | C14: 0 | D14: =B14+C14 -> 3.7220 | E14: =D14*90% -> 3.3498 | F14: 87 | G14: 86.2 | H14: =AVERAGE(F14:G14) -> 86.6 | I14: =4-3*(100-H14)*(100-H14)/1600 -> 3.66332500 | J14: =I14*10% -> 0.366332500 | K14: =E14+J14 -> 3.716132500 | L14: =100-SQRT((4-K14)*1600/3) -> 87.70
A15: 2200015146 | B15: 3.751 | C15: 0.02 | D15: =B15+C15 -> 3.7710 | E15: =D15*90% -> 3.3939 | F15: 69 | G15: 86.8 | H15: =AVERAGE(F15:G15) -> 77.9 | I15: =4-3*(100-H15)*(100-H15)/1600 -> 3.08423125 | J15: =I15*10% -> 0.308423125 | K15: =E15+J15 -> 3.702323125 | L15: =100-SQRT((4-K15)*1600/3) -> 87.40
A16: 2200015162 | B16: 3.752 | C16: 0.019 | D16: =B16+C16 -> 3.7710 | E16: =D16*90% -> 3.3939 | F16: 74 | G16: 76 | H16: =AVERAGE(F16:G16) -> 75 | I16: =4-3*(100-H16)*(100-H16)/1600 -> 2.82812500 | J16: =I16*10% -> 0.282812500 | K16: =E16+J16 -> 3.676712500 | L16: =100-SQRT((4-K16)*1600/3) -> 86.87
A17: 2200015104 | B17: 3.694 | C17: 0.037 | D17: =B17+C17 -> 3.7310 | E17: =D17*90% -> 3.3579 | F17: 72 | G17: 85 | H17: =AVERAGE(F17:G17) -> 78.5 | I17: =4-3*(100-H17)*(100-H17)/1600 -> 3.13328125 | J17: =I17*10% -> 0.313328125 | K17: =E17+J17 -> 3.671228125 | L17: =100-SQRT((4-K17)*1600/3) -> 86.76
A18: 2200015129 | B18: 3.722 | C18: 0 | D18: =B18+C18 -> 3.7220 | E18: =D18*90% -> 3.3498 | F18: 67 | G18: 89.2 | H18: =AVERAGE(F18:G18) -> 78.1 | I18: =4-3*(100-H18)*(100-H18)/1600 -> 3.10073125 | J18: =I18*10% -> 0.310073125 | K18: =E18+J18 -> 3.659873125 | L18: =100-SQRT((4-K18)*1600/3) -> 86.53
A19: 2200015152 | B19: 3.749 | C19: 0.0084 | D19: =B19+C19 -> 3.7574 | E19: =D19*90% -> 3.38166 | F19: 64 | G19: 84.6 | H19: =AVERAGE(F19:G19) -> 74.3 | I19: =4-3*(100-H19)*(100-H19)/1600 -> 2.76158125 | J19: =I19*10% -> 0.276158125 | K19: =E19+J19 -> 3.657818125 | L19: =100-SQRT((4-K19)*1600/3) -> 86.49
A20: 2200015176 | B20: 3.708 | C20: 0.026 | D20: =B20+C20 -> 3.7340 | E20: =D20*90% -> 3.3606 | F20: 69 | G20: 75.8 | H20: =AVERAGE(F20:G20) -> 72.4 | I20: =4-3*(100-H20)*(100-H20)/1600 -> 2.57170000 | J20: =I20*10% -> 0.257170000 | K20: =E20+J20 -> 3.617770000 | L20: =100-SQRT((4-K20)*1600/3) -> 85.72
A21: 2200015157 | B21: 3.591 | C21: 0.048 | D21: =B21+C21 -> 3.6390 | E21: =D21*90% -> 3.2751 | F21: 74 | G21: 87 | H21: =AVERAGE(F21:G21) -> 80.5 | I21: =4-3*(100-H21)*(100-H21)/1600 -> 3.28703125 | J21: =I21*10% -> 0.328703125 | K21: =E21+J21 -> 3.603803125 | L21: =100-SQRT((4-K21)*1600/3) -> 85.46
A22: 2200015102 | B22: 3.701 | C22: 0.0234 | D22: =B22+C22 -> 3.7244 | E22: =D22*90% -> 3.35196 | F22: 60 | G22: 80.2 | H22: =AVERAGE(F22:G22) -> 70.1 | I22: =4-3*(100-H22)*(100-H22)/1600 -> 2.32373125 | J22: =I22*10% -> 0.232373125 | K22: =E22+J22 -> 3.584333125 | L22: =100-SQRT((4-K22)*1600/3) -> 85.11
A23: 2200016643 | B23: 3.607 | C23: 0.008 | D23: =B23+C23 -> 3.6150 | E23: =D23*90% -> 3.2535 | F23: 61 | G23: 82.8 | H23: =AVERAGE(F23:G23) -> 71.9 | I23: =4-3*(100-H23)*(100-H23)/1600 -> 2.51948125 | J23: =I23*10% -> 0.251948125 | K23: =E23+J23 -> 3.505448125 | L23: =100-SQRT((4-K23)*1600/3) -> 83.76
A24: 2100015130 | B24: 3.581 | C24: 0.037 | D24: =B24+C24 -> 3.6180 | E24: =D24*90% -> 3.2562 | F24: 62 | G24: 77.6 | H24: =AVERAGE(F24:G24) -> 69.8 | I24: =4-3*(100-H24)*(100-H24)/1600 -> 2.28992500 | J24: =I24*10% -> 0.228992500 | K24: =E24+J24 -> 3.485192500 | L24: =100-SQRT((4-K24)*1600/3) -> 83.43
A28: 院外排队名单（普通项目）
A29: 推免申请ID | B29: 笔试成绩 | C29: 面试成绩 | D29: 平均分
A30: SQ202525054 | B30: 72 | C30: 92.2 | D30: =AVERAGE(B30:C30) -> 82.1
A31: SQ202511436 | B31: 74 | C31: 88.6 | D31: =AVERAGE(B31:C31) -> 81.3
A32: SQ202517551 | B32: 77 | C32: 80.4 | D32: =AVERAGE(B32:C32) -> 78.7
A33: SQ202526155 | B33: 60 | C33: 89.6 | D33: =AVERAGE(B33:C33) -> 74.8
A34: SQ202510853 | B34: 50 | C34: 88.2 | D34: =AVERAGE(B34:C34) -> 69.1
